[Event "Titled Tuesday Blitz March 08 Early 2022"]
[White "Gaehwiler, Gabriel"]
[Black "Goltseva, Ekaterina"]
[WhiteFideId "1314530"]
[BlackFideId "24173770"]
[WhiteElo "2383"]
[BlackElo "2140"]
[Result "1-0"]
[Round "10"]
[TimeControl "180+1"]
[Date "2022.03.08"]
[WhiteClock "0:00:15"]
[BlackClock "0:00:01"]

1. Nf3 {[%clk 0:03:00]}  Nf6 {[%clk 0:02:59]} 2. c4 {[%clk 0:03:01]}  e6 {[%clk 0:02:59]} 3. g3 {[%clk 0:03:00]}  d5 {[%clk 0:02:59]} 4. d3 {[%clk 0:03:01]}  dxc4 {[%clk 0:02:59]} 5. dxc4 {[%clk 0:03:01]}  Qxd1+ {[%clk 0:02:59]} 6. Kxd1 {[%clk 0:03:02]}  Bc5 {[%clk 0:02:57]} 7. e3 {[%clk 0:03:01]}  Nc6 {[%clk 0:02:53]} 8. Ke2 {[%clk 0:03:00]}  e5 {[%clk 0:02:53]} 9. h3 {[%clk 0:02:27]}  Be6 {[%clk 0:02:48]} 10. b3 {[%clk 0:02:24]}  Nb4 {[%clk 0:02:18]} 11. Ne1 {[%clk 0:02:16]}  e4 {[%clk 0:01:42]} 12. Bb2 {[%clk 0:02:12]}  O-O-O {[%clk 0:01:40]} 13. Bg2 {[%clk 0:02:07]}  Bf5 {[%clk 0:01:31]} 14. Nc3 {[%clk 0:01:53]}  Nd3 {[%clk 0:01:27]} 15. Nxd3 {[%clk 0:01:51]}  exd3+ {[%clk 0:01:25]} 16. Kd2 {[%clk 0:01:50]}  Rhe8 {[%clk 0:01:12]} 17. Rhe1 {[%clk 0:01:40]}  Ne4+ {[%clk 0:00:42]} 18. Nxe4 {[%clk 0:01:36]}  Bxe4 {[%clk 0:00:42]} 19. Bxe4 {[%clk 0:01:36]}  Bb4+ {[%clk 0:00:27]} 20. Bc3 {[%clk 0:01:36]}  Bxc3+ {[%clk 0:00:28]} 21. Kxc3 {[%clk 0:01:37]}  Rxe4 {[%clk 0:00:28]} 22. Rad1 {[%clk 0:01:36]}  Re6 {[%clk 0:00:22]} 23. Rxd3 {[%clk 0:01:32]}  Ra6 {[%clk 0:00:22]} 24. Rxd8+ {[%clk 0:01:23]}  Kxd8 {[%clk 0:00:23]} 25. Rd1+ {[%clk 0:01:24]}  Ke7 {[%clk 0:00:23]} 26. Rd2 {[%clk 0:01:24]}  g5 {[%clk 0:00:23]} 27. a4 {[%clk 0:01:19]}  Rh6 {[%clk 0:00:23]} 28. Rd5 {[%clk 0:01:17]}  f6 {[%clk 0:00:19]} 29. c5 {[%clk 0:00:25]}  Rxh3 {[%clk 0:00:17]} 30. b4 {[%clk 0:00:26]}  Rh2 {[%clk 0:00:12]} 31. Rd2 {[%clk 0:00:25]}  h5 {[%clk 0:00:13]} 32. b5 {[%clk 0:00:25]}  h4 {[%clk 0:00:13]} 33. gxh4 {[%clk 0:00:26]}  gxh4 {[%clk 0:00:10]} 34. c6 {[%clk 0:00:23]}  bxc6 {[%clk 0:00:10]} 35. bxc6 {[%clk 0:00:24]}  h3 {[%clk 0:00:03]} 36. Rd7+ {[%clk 0:00:21]}  Ke6 {[%clk 0:00:03]} 37. Rxc7 {[%clk 0:00:22]}  Kd6 {[%clk 0:00:01]} 38. Rxa7 {[%clk 0:00:19]}  Kxc6 {[%clk 0:00:02]} 39. f4 {[%clk 0:00:17]}  Re2 {[%clk 0:00:01]} 40. Kd3 {[%clk 0:00:17]}  Ra2 {[%clk 0:00:01]} 41. Rh7 {[%clk 0:00:17]}  h2 {[%clk 0:00:01]} 42. Ke4 {[%clk 0:00:16]}  Kd6 {[%clk 0:00:01]} 43. Kf5 {[%clk 0:00:15]} 1-0


[Site "https://www.chess.com"]

[Event "Titled Tuesday Blitz March 08 Early 2022"]
[White "Garriga Cazorla, Pere"]
[Black "Demchenko, Anton"]
[WhiteFideId "32011601"]
[BlackFideId "4160258"]
[WhiteElo "2458"]
[BlackElo "2539"]
[Result "1-0"]
[Round "10"]
[TimeControl "180+1"]
[Date "2022.03.08"]
[WhiteClock "0:00:30"]
[BlackClock "0:00:03"]

1. d4 {[%clk 0:02:33]}  Nf6 {[%clk 0:02:59]} 2. c3 {[%clk 0:02:33]}  g6 {[%clk 0:02:57]} 3. Nf3 {[%clk 0:02:33]}  Bg7 {[%clk 0:02:57]} 4. Bf4 {[%clk 0:02:34]}  d6 {[%clk 0:02:57]} 5. Nbd2 {[%clk 0:02:34]}  O-O {[%clk 0:02:58]} 6. h3 {[%clk 0:02:34]}  Nc6 {[%clk 0:02:58]} 7. e3 {[%clk 0:02:34]}  b6 {[%clk 0:02:50]} 8. Bh2 {[%clk 0:02:33]}  Bb7 {[%clk 0:02:51]} 9. Be2 {[%clk 0:02:30]}  Re8 {[%clk 0:02:46]} 10. O-O {[%clk 0:02:30]}  e5 {[%clk 0:02:47]} 11. a4 {[%clk 0:02:29]}  e4 {[%clk 0:02:44]} 12. Ne1 {[%clk 0:02:30]}  a6 {[%clk 0:02:42]} 13. b4 {[%clk 0:02:29]}  Ne7 {[%clk 0:02:42]} 14. Nc2 {[%clk 0:02:26]}  Nf5 {[%clk 0:02:41]} 15. c4 {[%clk 0:02:26]}  h5 {[%clk 0:02:35]} 16. a5 {[%clk 0:02:25]}  Nh7 {[%clk 0:02:35]} 17. axb6 {[%clk 0:02:24]}  cxb6 {[%clk 0:02:35]} 18. Nb3 {[%clk 0:02:19]}  Ng5 {[%clk 0:02:29]} 19. c5 {[%clk 0:02:17]}  Bd5 {[%clk 0:02:17]} 20. Ra3 {[%clk 0:02:08]}  b5 {[%clk 0:02:11]} 21. cxd6 {[%clk 0:02:01]}  Nxd6 {[%clk 0:02:10]} 22. Nc5 {[%clk 0:02:01]}  Nc4 {[%clk 0:00:38]} 23. Rxa6 {[%clk 0:01:54]}  Rxa6 {[%clk 0:00:37]} 24. Nxa6 {[%clk 0:01:55]}  Re7 {[%clk 0:00:37]} 25. Nc5 {[%clk 0:01:36]}  Ra7 {[%clk 0:00:37]} 26. Na1 {[%clk 0:01:35]}  Ra2 {[%clk 0:00:32]} 27. Nab3 {[%clk 0:01:36]}  Nf3+ {[%clk 0:00:23]} 28. gxf3 {[%clk 0:01:24]}  Qg5+ {[%clk 0:00:15]} 29. Bg3 {[%clk 0:01:20]}  exf3 {[%clk 0:00:02]} 30. Bxf3 {[%clk 0:01:17]}  Nxe3 {[%clk 0:00:02]} 31. Qc1 {[%clk 0:00:52]}  Bxf3 {[%clk 0:00:02]} 32. Qxe3 {[%clk 0:00:52]}  Qxe3 {[%clk 0:00:03]} 33. fxe3 {[%clk 0:00:53]}  Rg2+ {[%clk 0:00:03]} 34. Kh1 {[%clk 0:00:53]}  Rxg3+ {[%clk 0:00:04]} 35. Kh2 {[%clk 0:00:50]}  Rg2+ {[%clk 0:00:05]} 36. Kh1 {[%clk 0:00:51]}  Rg3+ {[%clk 0:00:05]} 37. Kh2 {[%clk 0:00:51]}  h4 {[%clk 0:00:04]} 38. Rf2 {[%clk 0:00:47]}  Bh6 {[%clk 0:00:03]} 39. Nd2 {[%clk 0:00:44]}  Bd5 {[%clk 0:00:01]} 40. e4 {[%clk 0:00:42]}  Be3 {[%clk 0:00:02]} 41. Re2 {[%clk 0:00:33]}  Bf4 {[%clk 0:00:02]} 42. Rf2 {[%clk 0:00:31]}  Be3 {[%clk 0:00:02]} 43. Re2 {[%clk 0:00:31]}  Bf4 {[%clk 0:00:02]} 44. Rf2 {[%clk 0:00:31]}  Rf3+ {[%clk 0:00:02]} 45. Kg2 {[%clk 0:00:31]}  Rxf2+ {[%clk 0:00:01]} 46. Kxf2 {[%clk 0:00:32]}  Bxd2 {[%clk 0:00:01]} 47. exd5 {[%clk 0:00:32]}  Bxb4 {[%clk 0:00:02]} 48. d6 {[%clk 0:00:32]}  Kf8 {[%clk 0:00:03]} 49. Ke3 {[%clk 0:00:31]}  Ke8 {[%clk 0:00:03]} 50. Ke4 {[%clk 0:00:31]}  Kd8 {[%clk 0:00:03]} 51. Kd5 {[%clk 0:00:30]}  Bc3 {[%clk 0:00:03]} 52. Kc6 {[%clk 0:00:29]}  Bxd4 {[%clk 0:00:03]} 53. Nb7+ {[%clk 0:00:29]}  Ke8 {[%clk 0:00:03]} 54. d7+ {[%clk 0:00:30]} 1-0


[Site "https://www.chess.com"]

[Event "Titled Tuesday Blitz March 08 Early 2022"]
[White "Golubka, Petro"]
[Black "Vokhidov, Shamsiddin"]
[WhiteFideId "14114224"]
[BlackFideId "14204223"]
[WhiteElo "2346"]
[BlackElo "2611"]
[Result "0-1"]
[Round "10"]
[TimeControl "180+1"]
[Date "2022.03.08"]
[WhiteClock "0:01:13"]
[BlackClock "0:02:05"]

1. e4 {[%clk 0:02:11]}  c5 {[%clk 0:02:59]} 2. h4 {[%clk 0:02:10]}  Nc6 {[%clk 0:02:57]} 3. Bb5 {[%clk 0:02:06]}  Nf6 {[%clk 0:02:56]} 4. Nc3 {[%clk 0:02:06]}  Nd4 {[%clk 0:02:50]} 5. a4 {[%clk 0:02:05]}  a6 {[%clk 0:02:48]} 6. Bc4 {[%clk 0:02:02]}  e6 {[%clk 0:02:47]} 7. e5 {[%clk 0:02:02]}  d5 {[%clk 0:02:47]} 8. exd6 {[%clk 0:02:00]}  Bxd6 {[%clk 0:02:46]} 9. d3 {[%clk 0:01:58]}  Bd7 {[%clk 0:02:43]} 10. Bg5 {[%clk 0:01:49]}  b5 {[%clk 0:02:40]} 11. Ba2 {[%clk 0:01:46]}  h6 {[%clk 0:02:25]} 12. Be3 {[%clk 0:01:41]}  Bc6 {[%clk 0:02:22]} 13. Nf3 {[%clk 0:01:39]}  Nxf3+ {[%clk 0:02:19]} 14. gxf3 {[%clk 0:01:40]}  Nd5 {[%clk 0:02:15]} 15. Bxd5 {[%clk 0:01:30]}  exd5 {[%clk 0:02:16]} 16. axb5 {[%clk 0:01:31]}  axb5 {[%clk 0:02:16]} 17. d4 {[%clk 0:01:28]}  Rxa1 {[%clk 0:02:13]} 18. Qxa1 {[%clk 0:01:29]}  O-O {[%clk 0:02:08]} 19. dxc5 {[%clk 0:01:27]}  Be5 {[%clk 0:02:06]} 20. Qa6 {[%clk 0:01:22]}  Qd7 {[%clk 0:02:06]} 21. O-O {[%clk 0:01:15]}  Ra8 {[%clk 0:02:05]} 22. Qb6 {[%clk 0:01:13]}  Bc7 {[%clk 0:02:05]} 0-1


[Site "https://www.chess.com"]

[Event "Titled Tuesday Blitz March 08 Early 2022"]
[White "Goryachkina, Aleksandra"]
[Black "Bryakin, Mikhail"]
[WhiteFideId "4147103"]
[BlackFideId "4165314"]
[WhiteElo "2426"]
[BlackElo "2417"]
[Result "0-1"]
[Round "10"]
[TimeControl "180+1"]
[Date "2022.03.08"]
[WhiteClock "0:00:01"]
[BlackClock "0:00:47"]

1. e4 {[%clk 0:02:59]}  c5 {[%clk 0:02:56]} 2. Nf3 {[%clk 0:02:57]}  Nc6 {[%clk 0:02:55]} 3. Nc3 {[%clk 0:02:55]}  d6 {[%clk 0:02:46]} 4. Bb5 {[%clk 0:02:52]}  Bd7 {[%clk 0:02:45]} 5. O-O {[%clk 0:02:51]}  g6 {[%clk 0:02:45]} 6. d4 {[%clk 0:02:49]}  cxd4 {[%clk 0:02:44]} 7. Nxd4 {[%clk 0:02:50]}  Bg7 {[%clk 0:02:44]} 8. Be3 {[%clk 0:02:50]}  Nf6 {[%clk 0:02:44]} 9. h3 {[%clk 0:02:46]}  O-O {[%clk 0:02:44]} 10. Bc4 {[%clk 0:02:37]}  a6 {[%clk 0:02:42]} 11. Bb3 {[%clk 0:02:36]}  b5 {[%clk 0:02:40]} 12. a3 {[%clk 0:02:33]}  Rc8 {[%clk 0:02:39]} 13. Qd2 {[%clk 0:02:14]}  Na5 {[%clk 0:02:38]} 14. Rad1 {[%clk 0:01:58]}  Nc4 {[%clk 0:02:30]} 15. Bxc4 {[%clk 0:01:54]}  Rxc4 {[%clk 0:02:31]} 16. f3 {[%clk 0:01:47]}  Qa8 {[%clk 0:02:30]} 17. Nb3 {[%clk 0:01:42]}  a5 {[%clk 0:02:14]} 18. Bh6 {[%clk 0:01:35]}  b4 {[%clk 0:02:10]} 19. axb4 {[%clk 0:01:28]}  axb4 {[%clk 0:02:11]} 20. Bxg7 {[%clk 0:01:23]}  Kxg7 {[%clk 0:02:12]} 21. Nd5 {[%clk 0:01:08]}  Nxd5 {[%clk 0:02:11]} 22. exd5 {[%clk 0:01:08]}  Rfc8 {[%clk 0:02:12]} 23. Rc1 {[%clk 0:00:40]}  Bf5 {[%clk 0:02:10]} 24. c3 {[%clk 0:00:25]}  bxc3 {[%clk 0:01:52]} 25. bxc3 {[%clk 0:00:26]}  Qb7 {[%clk 0:01:52]} 26. Nd4 {[%clk 0:00:17]}  Qxd5 {[%clk 0:01:52]} 27. Qe3 {[%clk 0:00:15]}  R8c7 {[%clk 0:01:28]} 28. Rfe1 {[%clk 0:00:15]}  h6 {[%clk 0:01:24]} 29. Kh1 {[%clk 0:00:14]}  Bc8 {[%clk 0:01:17]} 30. Qd3 {[%clk 0:00:09]}  Qg5 {[%clk 0:01:10]} 31. Rc2 {[%clk 0:00:03]}  Bf5 {[%clk 0:00:50]} 32. Nxf5+ {[%clk 0:00:03]}  Qxf5 {[%clk 0:00:50]} 33. Qd2 {[%clk 0:00:02]}  h5 {[%clk 0:00:47]} 34. Re3 {[%clk 0:00:02]}  h4 {[%clk 0:00:47]} 35. Rc1 {[%clk 0:00:03]}  Qf6 {[%clk 0:00:48]} 36. Qe1 {[%clk 0:00:01]}  e6 {[%clk 0:00:47]} 37. Qd2 {[%clk 0:00:02]}  d5 {[%clk 0:00:47]} 38. Rb1 {[%clk 0:00:01]}  Rxc3 {[%clk 0:00:47]} 39. Rxc3 {[%clk 0:00:01]}  Qxc3 {[%clk 0:00:47]} 40. Qg5 {[%clk 0:00:01]}  Qf6 {[%clk 0:00:47]} 41. Qg4 {[%clk 0:00:01]}  Rc4 {[%clk 0:00:47]} 0-1


[Site "https://www.chess.com"]

[Event "Titled Tuesday Blitz March 08 Early 2022"]
[White "Grafil, Franz Robert"]
[Black "Urbina Quiroz, Edwin"]
[WhiteFideId "5205298"]
[BlackFideId "6500650"]
[WhiteElo "2211"]
[BlackElo "2152"]
[Result "1-0"]
[Round "10"]
[TimeControl "180+1"]
[Date "2022.03.09"]
[WhiteClock "0:00:05"]
[BlackClock "0:00:02"]

1. d4 {[%clk 0:02:51]}  d5 {[%clk 0:02:56]} 2. c4 {[%clk 0:02:50]}  e6 {[%clk 0:02:57]} 3. Nf3 {[%clk 0:02:50]}  Nf6 {[%clk 0:02:57]} 4. g3 {[%clk 0:02:49]}  Be7 {[%clk 0:02:58]} 5. Bg2 {[%clk 0:02:49]}  O-O {[%clk 0:02:58]} 6. O-O {[%clk 0:02:41]}  dxc4 {[%clk 0:02:52]} 7. Qa4 {[%clk 0:02:41]}  a6 {[%clk 0:02:36]} 8. Qxc4 {[%clk 0:02:40]}  b5 {[%clk 0:02:36]} 9. Qc2 {[%clk 0:02:40]}  Bb7 {[%clk 0:02:36]} 10. Bd2 {[%clk 0:02:39]}  Nbd7 {[%clk 0:02:35]} 11. Ba5 {[%clk 0:02:29]}  Rc8 {[%clk 0:02:34]} 12. Nbd2 {[%clk 0:02:27]}  Qe8 {[%clk 0:02:34]} 13. b4 {[%clk 0:02:22]}  Nb6 {[%clk 0:02:32]} 14. Rac1 {[%clk 0:02:15]}  Bd6 {[%clk 0:02:22]} 15. Ne5 {[%clk 0:01:46]}  Bxg2 {[%clk 0:02:16]} 16. Kxg2 {[%clk 0:01:46]}  Bxe5 {[%clk 0:02:09]} 17. dxe5 {[%clk 0:01:45]}  Nfd7 {[%clk 0:02:08]} 18. f4 {[%clk 0:01:34]}  f6 {[%clk 0:02:08]} 19. exf6 {[%clk 0:01:32]}  Nxf6 {[%clk 0:02:00]} 20. Nf3 {[%clk 0:01:20]}  Nfd5 {[%clk 0:01:58]} 21. Qc5 {[%clk 0:01:06]}  Nc4 {[%clk 0:01:57]} 22. Rxc4 {[%clk 0:00:48]}  bxc4 {[%clk 0:01:55]} 23. e4 {[%clk 0:00:48]}  Nf6 {[%clk 0:01:49]} 24. Qxc4 {[%clk 0:00:48]}  c5 {[%clk 0:01:45]} 25. bxc5 {[%clk 0:00:44]}  Qc6 {[%clk 0:01:44]} 26. Ng5 {[%clk 0:00:27]}  Qxc5 {[%clk 0:01:36]} 27. Qxe6+ {[%clk 0:00:12]}  Kh8 {[%clk 0:01:36]} 28. Be1 {[%clk 0:00:09]}  h6 {[%clk 0:01:22]} 29. Nf7+ {[%clk 0:00:09]}  Kh7 {[%clk 0:01:22]} 30. Ne5 {[%clk 0:00:08]}  Qc2+ {[%clk 0:01:10]} 31. Kg1 {[%clk 0:00:08]}  Qxe4 {[%clk 0:01:07]} 32. Bf2 {[%clk 0:00:08]}  Rc2 {[%clk 0:00:56]} 33. Qxa6 {[%clk 0:00:07]}  Nd5 {[%clk 0:00:32]} 34. Re1 {[%clk 0:00:05]}  Qf5 {[%clk 0:00:21]} 35. Qd6 {[%clk 0:00:05]}  Nxf4 {[%clk 0:00:12]} 36. gxf4 {[%clk 0:00:04]}  Rxf2 {[%clk 0:00:13]} 37. Kxf2 {[%clk 0:00:04]}  Qxf4+ {[%clk 0:00:13]} 38. Ke2 {[%clk 0:00:04]}  Qf2+ {[%clk 0:00:09]} 39. Kd1 {[%clk 0:00:04]}  Rc8 {[%clk 0:00:05]} 40. Qd3+ {[%clk 0:00:04]}  Kh8 {[%clk 0:00:05]} 41. Re2 {[%clk 0:00:05]}  Qf1+ {[%clk 0:00:05]} 42. Re1 {[%clk 0:00:05]}  Qf2 {[%clk 0:00:05]} 43. Qd2 {[%clk 0:00:05]}  Qf6 {[%clk 0:00:02]} 44. Qd4 {[%clk 0:00:05]}  Rd8 {[%clk 0:00:02]} 45. Nd7 {[%clk 0:00:05]} 1-0


[Site "https://www.chess.com"]

[Event "Titled Tuesday Blitz March 08 Early 2022"]
[White "Guseva, Marina"]
[Black "Zemerov, Vladimir"]
[WhiteFideId "4149351"]
[BlackFideId "4111583"]
[WhiteElo "2160"]
[BlackElo "2277"]
[Result "1-0"]
[Round "10"]
[TimeControl "180+1"]
[Date "2022.03.09"]
[WhiteClock "0:00:16"]
[BlackClock "0:00:25"]

1. d4 {[%clk 0:03:00]}  d6 {[%clk 0:02:58]} 2. Nf3 {[%clk 0:02:59]}  g6 {[%clk 0:02:58]} 3. Bf4 {[%clk 0:02:55]}  Bg7 {[%clk 0:02:58]} 4. e3 {[%clk 0:02:54]}  a6 {[%clk 0:02:57]} 5. Be2 {[%clk 0:02:54]}  b5 {[%clk 0:02:57]} 6. a4 {[%clk 0:02:54]}  b4 {[%clk 0:02:53]} 7. O-O {[%clk 0:02:51]}  Bb7 {[%clk 0:02:52]} 8. c3 {[%clk 0:02:47]}  a5 {[%clk 0:02:47]} 9. cxb4 {[%clk 0:02:45]}  axb4 {[%clk 0:02:47]} 10. b3 {[%clk 0:02:45]}  Nd7 {[%clk 0:02:46]} 11. Nbd2 {[%clk 0:02:43]}  c5 {[%clk 0:02:46]} 12. Nc4 {[%clk 0:02:40]}  cxd4 {[%clk 0:02:35]} 13. Nxd4 {[%clk 0:02:28]}  Qb8 {[%clk 0:02:21]} 14. Nb5 {[%clk 0:02:25]}  Ra6 {[%clk 0:02:06]} 15. Ncxd6+ {[%clk 0:02:20]}  exd6 {[%clk 0:02:06]} 16. Nxd6+ {[%clk 0:02:15]}  Rxd6 {[%clk 0:02:03]} 17. Bxd6 {[%clk 0:02:15]}  Qa8 {[%clk 0:01:53]} 18. Bf3 {[%clk 0:02:07]}  Bxf3 {[%clk 0:01:50]} 19. gxf3 {[%clk 0:01:59]}  Ne7 {[%clk 0:01:47]} 20. Bxb4 {[%clk 0:01:50]}  Nd5 {[%clk 0:01:36]} 21. Bd6 {[%clk 0:01:40]}  Qc6 {[%clk 0:01:30]} 22. Bg3 {[%clk 0:01:08]}  Bxa1 {[%clk 0:01:22]} 23. Qxa1 {[%clk 0:01:06]}  O-O {[%clk 0:01:21]} 24. Rc1 {[%clk 0:01:04]}  Qb7 {[%clk 0:01:12]} 25. e4 {[%clk 0:00:59]}  Nb4 {[%clk 0:01:08]} 26. Rc7 {[%clk 0:00:58]}  Qb6 {[%clk 0:01:00]} 27. Rxd7 {[%clk 0:00:57]}  Rc8 {[%clk 0:00:59]} 28. Qd4 {[%clk 0:00:54]}  Rc1+ {[%clk 0:00:54]} 29. Kg2 {[%clk 0:00:53]}  Qxd4 {[%clk 0:00:55]} 30. Rxd4 {[%clk 0:00:52]}  Nc2 {[%clk 0:00:55]} 31. Rd8+ {[%clk 0:00:43]}  Kg7 {[%clk 0:00:55]} 32. Be5+ {[%clk 0:00:43]}  f6 {[%clk 0:00:55]} 33. Rd7+ {[%clk 0:00:42]}  Kf8 {[%clk 0:00:55]} 34. Bxf6 {[%clk 0:00:40]}  Ne1+ {[%clk 0:00:55]} 35. Kg3 {[%clk 0:00:39]}  h5 {[%clk 0:00:54]} 36. a5 {[%clk 0:00:30]}  Rb1 {[%clk 0:00:53]} 37. Bc3 {[%clk 0:00:17]}  h4+ {[%clk 0:00:43]} 38. Kxh4 {[%clk 0:00:14]}  Nxf3+ {[%clk 0:00:42]} 39. Kg3 {[%clk 0:00:14]}  Rxb3 {[%clk 0:00:41]} 40. Kxf3 {[%clk 0:00:13]}  Rxc3+ {[%clk 0:00:41]} 41. Kf4 {[%clk 0:00:13]}  Ra3 {[%clk 0:00:39]} 42. Ra7 {[%clk 0:00:14]}  Ra4 {[%clk 0:00:36]} 43. a6 {[%clk 0:00:14]}  Ke8 {[%clk 0:00:29]} 44. Kg5 {[%clk 0:00:13]}  Rxe4 {[%clk 0:00:28]} 45. Rh7 {[%clk 0:00:13]}  Re5+ {[%clk 0:00:26]} 46. Kf6 {[%clk 0:00:12]}  Ra5 {[%clk 0:00:26]} 47. a7 {[%clk 0:00:12]}  Ra6+ {[%clk 0:00:25]} 48. Kg5 {[%clk 0:00:12]}  Kf8 {[%clk 0:00:25]} 49. a8=Q+ {[%clk 0:00:11]}  Rxa8 {[%clk 0:00:24]} 50. Rh8+ {[%clk 0:00:11]}  Kg7 {[%clk 0:00:24]} 51. Rxa8 {[%clk 0:00:12]}  Kf7 {[%clk 0:00:24]} 52. Ra7+ {[%clk 0:00:12]}  Ke6 {[%clk 0:00:23]} 53. Kxg6 {[%clk 0:00:13]}  Kd5 {[%clk 0:00:24]} 54. h4 {[%clk 0:00:13]}  Kc5 {[%clk 0:00:25]} 55. h5 {[%clk 0:00:14]}  Kb5 {[%clk 0:00:26]} 56. h6 {[%clk 0:00:14]}  Kb6 {[%clk 0:00:27]} 57. Rd7 {[%clk 0:00:14]}  Kc6 {[%clk 0:00:27]} 58. Rd1 {[%clk 0:00:14]}  Kc5 {[%clk 0:00:27]} 59. h7 {[%clk 0:00:14]}  Kc4 {[%clk 0:00:28]} 60. h8=Q {[%clk 0:00:14]}  Kc5 {[%clk 0:00:25]} 61. Qc8+ {[%clk 0:00:15]}  Kb6 {[%clk 0:00:25]} 62. Rb1+ {[%clk 0:00:15]}  Ka7 {[%clk 0:00:25]} 63. Qb7# {[%clk 0:00:16]} 1-0


[Site "https://www.chess.com"]

[Event "Titled Tuesday Blitz March 08 Early 2022"]
[White "Horobetz, Graham"]
[Black "Lima, Kleyton Alcantara"]
[WhiteFideId "2047322"]
[BlackFideId "22718397"]
[WhiteElo "2640"]
[BlackElo "1951"]
[Result "1-0"]
[Round "10"]
[TimeControl "180+1"]
[Date "2022.03.09"]
[WhiteClock "0:01:52"]
[BlackClock "0:02:11"]

1. e4 {[%clk 0:02:59]}  c5 {[%clk 0:02:59]} 2. Nf3 {[%clk 0:02:59]}  d6 {[%clk 0:02:58]} 3. d4 {[%clk 0:03:00]}  cxd4 {[%clk 0:02:59]} 4. Nxd4 {[%clk 0:03:00]}  Nf6 {[%clk 0:02:59]} 5. Nc3 {[%clk 0:03:01]}  a6 {[%clk 0:02:59]} 6. Be3 {[%clk 0:03:01]}  e5 {[%clk 0:02:58]} 7. Nb3 {[%clk 0:03:01]}  Be6 {[%clk 0:02:59]} 8. f3 {[%clk 0:03:01]}  h5 {[%clk 0:02:58]} 9. Nd5 {[%clk 0:02:59]}  Bxd5 {[%clk 0:02:57]} 10. exd5 {[%clk 0:03:00]}  Nbd7 {[%clk 0:02:58]} 11. Qd2 {[%clk 0:03:00]}  g6 {[%clk 0:02:58]} 12. Na5 {[%clk 0:03:00]}  Qc7 {[%clk 0:02:57]} 13. c4 {[%clk 0:02:58]}  e4 {[%clk 0:02:51]} 14. Be2 {[%clk 0:02:56]}  Bg7 {[%clk 0:02:49]} 15. f4 {[%clk 0:02:54]}  Ng4 {[%clk 0:02:47]} 16. Bxg4 {[%clk 0:02:45]}  hxg4 {[%clk 0:02:46]} 17. Rc1 {[%clk 0:02:43]}  f5 {[%clk 0:02:43]} 18. b4 {[%clk 0:02:41]}  Kf7 {[%clk 0:02:40]} 19. c5 {[%clk 0:02:35]}  Rac8 {[%clk 0:02:34]} 20. c6 {[%clk 0:02:33]}  bxc6 {[%clk 0:02:32]} 21. dxc6 {[%clk 0:02:25]}  Nf6 {[%clk 0:02:29]} 22. Nc4 {[%clk 0:02:22]}  Rhd8 {[%clk 0:02:23]} 23. Bb6 {[%clk 0:02:16]}  Qxc6 {[%clk 0:02:17]} 24. Bxd8 {[%clk 0:02:05]}  Rxd8 {[%clk 0:02:17]} 25. Ne5+ {[%clk 0:02:01]}  dxe5 {[%clk 0:02:18]} 26. Rxc6 {[%clk 0:02:00]}  Rxd2 {[%clk 0:02:17]} 27. Kxd2 {[%clk 0:02:01]}  exf4 {[%clk 0:02:17]} 28. Rxa6 {[%clk 0:01:59]}  e3+ {[%clk 0:02:17]} 29. Kd3 {[%clk 0:01:57]}  Ne4 {[%clk 0:02:16]} 30. Rc1 {[%clk 0:01:54]}  Bh6 {[%clk 0:02:13]} 31. Rc7+ {[%clk 0:01:53]}  Ke8 {[%clk 0:02:11]} 32. Ra8# {[%clk 0:01:52]} 1-0


[Site "https://www.chess.com"]

[Event "Titled Tuesday Blitz March 08 Early 2022"]
[White "Hua, Lefong"]
[Black "Shubenkova, Veronika"]
[WhiteFideId "2602253"]
[BlackFideId "44124040"]
[WhiteElo "2595"]
[BlackElo "1938"]
[Result "1-0"]
[Round "10"]
[TimeControl "180+1"]
[Date "2022.03.09"]
[WhiteClock "0:00:53"]
[BlackClock "0:00:02"]

1. d4 {[%clk 0:02:58]}  d5 {[%clk 0:02:59]} 2. c4 {[%clk 0:02:57]}  e6 {[%clk 0:02:59]} 3. Nc3 {[%clk 0:02:58]}  f5 {[%clk 0:02:59]} 4. e3 {[%clk 0:02:50]}  Nf6 {[%clk 0:02:59]} 5. Nf3 {[%clk 0:02:51]}  c6 {[%clk 0:02:58]} 6. Bd3 {[%clk 0:02:50]}  Bd6 {[%clk 0:02:57]} 7. b3 {[%clk 0:02:48]}  Ne4 {[%clk 0:02:56]} 8. Bb2 {[%clk 0:02:46]}  Nd7 {[%clk 0:02:56]} 9. O-O {[%clk 0:02:46]}  O-O {[%clk 0:02:56]} 10. Ne2 {[%clk 0:02:45]}  Rf6 {[%clk 0:02:56]} 11. Ne5 {[%clk 0:02:45]}  Rh6 {[%clk 0:02:56]} 12. f3 {[%clk 0:02:43]}  Ng5 {[%clk 0:02:36]} 13. Rc1 {[%clk 0:02:27]}  Nf7 {[%clk 0:02:35]} 14. f4 {[%clk 0:02:25]}  Qh4 {[%clk 0:02:34]} 15. h3 {[%clk 0:02:20]}  Nfxe5 {[%clk 0:02:34]} 16. fxe5 {[%clk 0:02:15]}  Be7 {[%clk 0:02:33]} 17. Qe1 {[%clk 0:02:10]}  Qg5 {[%clk 0:02:28]} 18. Qg3 {[%clk 0:02:09]}  Qxg3 {[%clk 0:02:26]} 19. Nxg3 {[%clk 0:02:09]}  Bg5 {[%clk 0:02:21]} 20. Kf2 {[%clk 0:02:05]}  Bh4 {[%clk 0:02:19]} 21. Kf3 {[%clk 0:02:03]}  Nf8 {[%clk 0:02:12]} 22. cxd5 {[%clk 0:02:00]}  cxd5 {[%clk 0:02:10]} 23. Rc7 {[%clk 0:01:58]}  Bd8 {[%clk 0:02:09]} 24. Rc2 {[%clk 0:01:56]}  Bd7 {[%clk 0:02:09]} 25. Rfc1 {[%clk 0:01:51]}  Ng6 {[%clk 0:01:59]} 26. Ne2 {[%clk 0:01:51]}  Nh4+ {[%clk 0:01:51]} 27. Kf2 {[%clk 0:01:51]}  Bc6 {[%clk 0:01:39]} 28. Ba3 {[%clk 0:01:40]}  g5 {[%clk 0:01:23]} 29. Bd6 {[%clk 0:01:35]}  g4 {[%clk 0:01:18]} 30. Nf4 {[%clk 0:01:31]}  gxh3 {[%clk 0:01:16]} 31. Nxh3 {[%clk 0:01:26]}  Ng6 {[%clk 0:01:05]} 32. b4 {[%clk 0:01:25]}  a6 {[%clk 0:01:03]} 33. a4 {[%clk 0:01:22]}  Bd7 {[%clk 0:00:43]} 34. b5 {[%clk 0:01:07]}  axb5 {[%clk 0:00:40]} 35. Bxb5 {[%clk 0:01:08]}  Bxb5 {[%clk 0:00:37]} 36. axb5 {[%clk 0:01:09]}  Kf7 {[%clk 0:00:35]} 37. Rc8 {[%clk 0:01:05]}  Ra2+ {[%clk 0:00:34]} 38. R1c2 {[%clk 0:01:04]}  Rxc2+ {[%clk 0:00:31]} 39. Rxc2 {[%clk 0:01:05]}  Bh4+ {[%clk 0:00:31]} 40. Kf3 {[%clk 0:01:04]}  Bd8 {[%clk 0:00:29]} 41. Rc8 {[%clk 0:01:03]}  Nh4+ {[%clk 0:00:28]} 42. Kf2 {[%clk 0:01:01]}  Ba5 {[%clk 0:00:25]} 43. Rb8 {[%clk 0:00:57]}  b6 {[%clk 0:00:19]} 44. Rb7+ {[%clk 0:00:57]}  Ke8 {[%clk 0:00:14]} 45. Nf4 {[%clk 0:00:53]}  Ng6 {[%clk 0:00:09]} 46. Nxe6 {[%clk 0:00:53]}  Nh8 {[%clk 0:00:02]} 47. Re7# {[%clk 0:00:53]} 1-0


[Site "https://www.chess.com"]